bitfinex/quotes_ETHUSD_20250821
["timestamp","ask_amount","ask_price","bid_price","bid_amount"]
[1755797149943,0.002,4227.1,4227.0,7.2024]
[1755797150535,0.002,4227.1,4227.0,3.1184]
[1755797150727,0.7876,4227.1,4227.0,7.084]
[1755797151246,0.7876,4227.1,4227.0,4.084]
[1755797151436,0.3166,4227.1,4227.0,4.084]
[1755797151637,0.002,4227.1,4227.0,6.74064402]
[1755797151837,0.002,4227.1,4227.0,10.19194402]
[1755797152145,0.002,4227.1,4227.0,9.85904402]
[1755797152348,0.002,4227.1,4227.0,10.31034402]
[1755797152649,0.002,4227.1,4227.0,14.58034402]
[1755797155357,0.002,4227.1,4227.0,7.3884]
[1755797155654,0.3166,4227.1,4227.0,7.3884]
[1755797155833,0.7876,4227.1,4227.0,11.353]
[1755797156657,0.002,4227.1,4227.0,21.22093698]
[1755797156847,0.002,4227.1,4227.0,23.586681]
[1755797157260,0.002,4227.1,4227.0,23.295781]
[1755797157427,0.002,4227.1,4227.0,24.037981]
[1755797157826,0.002,4227.1,4227.0,23.295781]
[1755797158031,0.002,4227.1,4227.0,3.0]
[1755797158243,0.002,4227.1,4227.0,9.44874402]
[1755797158554,0.002,4227.1,4227.0,7.083]
[1755797158961,0.7876,4227.1,4227.0,3.0]
[1755797159157,0.7876,4227.1,4226.6,1.82]
[1755797159357,0.7876,4227.1,4226.7,4.083]
[1755797159358,0.5005718,4227.0,4226.7,4.083]
[1755797159559,0.3146,4226.8,4226.7,4.083]
[1755797159724,0.7856,4226.8,4226.0,1.819]
[1755797159926,0.3146,4226.8,4226.1,4.083]
[1755797160149,0.471,4226.7,4226.1,4.083]
[1755797160353,0.002,4227.1,4226.2,3.0]
[1755797160555,0.002,4227.1,4226.4,3.0]
[1755797160757,0.002,4227.1,4226.5,4.083]
[1755797160926,0.002,4227.1,4226.6,3.0]
[1755797161328,0.2979,4226.7,4226.6,3.0]
[1755797161927,0.002,4227.1,4226.6,3.0]
[1755797162125,0.002,4227.1,4226.7,4.083]
[1755797162345,0.002,4227.1,4226.7,6.44890964]
[1755797162538,0.002,4227.1,4227.0,2.65664402]
[1755797162830,0.002,4227.1,4227.0,7.3739]
[1755797163032,0.002,4227.1,4227.0,7.083]
[1755797163230,0.002,4227.1,4227.0,10.19094402]
[1755797163640,0.002,4227.1,4227.0,24.037981]
[1755797164070,0.001,4227.3,4227.2,2.36563209]
[1755797164254,0.001,4227.3,4227.2,9.73953209]
[1755797164559,0.001,4227.3,4227.2,10.19083209]
[1755797164774,0.001,4227.3,4227.2,10.85083209]
[1755797165463,0.001,4227.3,4227.2,10.19083209]
[1755797166637,0.001,4227.3,4227.2,10.30923209]
[1755797168710,0.001,4227.3,4227.2,9.85793209]
[1755797169046,0.001,4227.3,4227.2,9.56703209]
[1755797169431,0.001,4227.3,4227.2,5.77073209]
[1755797169646,0.001,4227.3,4227.2,9.85273209]
[1755797170235,0.001,4227.3,4227.2,9.56603209]
[1755797170440,0.7445,4227.3,4227.2,0.1184]
[1755797170641,0.7445,4227.3,4227.2,4.2004]
[1755797171687,0.8629,4227.3,4226.8,1.819]
[1755797171836,0.4475,4227.2,4226.9,4.082]
[1755797172041,0.4144,4227.0,4226.9,4.082]
[1755797172372,0.8619,4227.0,4226.9,4.082]
[1755797174741,0.8619,4227.0,4226.6,4.081]
[1755797174969,0.47707249,4226.9,4226.3,4.081]
[1755797175131,0.47707249,4226.9,4226.2,1.819]
[1755797175132,0.4144,4226.4,4226.2,1.819]
[1755797175334,0.4144,4226.4,4226.3,4.082]
[1755797175966,0.8619,4226.4,4226.3,4.082]
[1755797176558,0.001,4227.3,4226.3,4.3687]
[1755797176759,0.1184,4227.0,4226.4,3.0]
[1755797176982,0.296,4226.5,4226.2,1.819]
[1755797177161,0.296,4226.5,4226.4,3.0]
[1755797177679,0.296,4226.5,4226.4,4.081]
[1755797177885,0.7435,4226.5,4226.4,4.081]
[1755797178677,0.1184,4226.7,4226.4,4.081]
[1755797179379,0.1184,4226.7,4226.3,0.004]
[1755797179380,0.296,4226.5,4226.3,0.004]
[1755797179671,0.1184,4226.4,4226.3,0.004]
[1755797179875,0.4144,4226.4,4226.3,0.004]
[1755797180040,0.8619,4226.4,4226.3,0.004]
[1755797183076,0.7435,4226.4,4226.3,0.004]
[1755797183452,0.296,4226.4,4226.3,0.004]
[1755797184964,0.4475,4226.9,4226.3,0.004]
[1755797185303,0.001,4227.1,4226.3,0.004]
[1755797185449,0.001,4227.1,4226.3,5.2576]
[1755797185655,0.001,4227.1,4226.4,2.36607987]
[1755797186003,0.001,4227.1,4226.5,4.082]
[1755797186592,0.001,4227.1,4226.5,6.44801097]
[1755797186796,0.001,4227.1,4226.5,4.082]
[1755797190588,0.001,4227.1,4227.0,0.2867]
[1755797190888,0.001,4227.1,4227.0,4.3677]
[1755797191295,0.001,4227.1,4227.0,4.081]
[1755797191498,0.297,4227.1,4227.0,4.081]
[1755797191686,0.7445,4227.1,4226.3,1.824]
[1755797191873,0.0295718,4227.0,4226.4,4.081]
[1755797192078,0.296,4226.5,4226.4,4.081]
[1755797192291,0.7435,4226.5,4226.4,4.081]
[1755797192487,0.7435,4226.5,4226.3,0.004]
[1755797192488,1.4035,4226.5,4226.3,0.004]
[1755797192802,0.661,4227.1,4226.3,0.004]
[1755797192997,0.0295718,4227.0,4226.3,0.004]
[1755797193216,0.1184,4226.4,4226.3,0.004]
[1755797195303,0.4144,4226.4,4226.3,0.004]
[1755797195638,1.5219,4226.4,4226.3,0.004]
[1755797195773,15.40765157,4226.4,4226.3,0.004]
[1755797196304,1.55569,4226.4,4226.3,0.004]
[1755797196696,1.58526599,4226.4,4226.3,0.004]
[1755797196879,1.55569,4226.4,4226.3,0.004]
[1755797197280,1.58526599,4226.4,4226.3,0.004]
[1755797197685,1.55569,4226.4,4226.3,0.004]
[1755797198677,1.58526599,4226.4,4226.3,0.004]
[1755797198873,1.55569,4226.4,4226.3,0.004]
[1755797199622,0.15219,4226.4,4226.3,0.004]
[1755797199777,0.2955,4226.4,4226.3,0.004]
[1755797200421,1.45107599,4226.4,4226.3,0.004]
[1755797200878,1.4215,4226.4,4226.3,0.004]
[1755797201398,2.287,4227.1,4226.3,0.293]
[1755797201598,0.001,4227.1,4226.3,0.293]
[1755797201911,0.001,4227.1,4226.5,3.0]
[1755797202076,0.001,4227.1,4227.0,0.289]
[1755797202275,0.001,4227.1,4226.5,3.0]
[1755797202529,0.001,4227.1,4227.0,0.289]
[1755797203097,0.001,4227.1,4227.0,0.7296]
[1755797203929,0.001,4227.1,4227.0,6.09534402]
[1755797204096,0.001,4227.1,4227.0,3.7296]
[1755797205584,0.001,4227.1,4227.0,7.8106]
[1755797205986,0.001,4227.1,4227.0,10.17634402]
[1755797206320,0.001,4227.1,4227.0,7.8106]
[1755797206848,0.001,4227.1,4227.0,7.8096]
[1755797207235,0.001,4227.1,4227.0,3.7296]
[1755797207441,0.001,4227.1,4227.0,7.8096]
[1755797208861,0.001,4227.1,4227.0,10.17534402]
[1755797209031,0.001,4227.1,4227.0,14.56374402]
[1755797209732,0.001,4227.1,4227.0,14.85979778]
[1755797210478,0.001,4227.3,4227.2,2.36563209]
[1755797210615,0.001,4227.3,4227.2,5.65463209]
[1755797211068,0.002,4227.6,4227.5,3.02546422]
[1755797211341,0.002,4227.6,4227.5,19.50642579]
[1755797211545,0.002,4227.6,4227.5,10.29246422]
[1755797212644,0.002,4227.6,4227.5,24.14442579]
[1755797213708,0.002,4227.6,4227.5,6.21346422]
[1755797214235,0.002,4227.6,4227.5,10.29146422]
[1755797215521,0.002,4227.6,4227.5,6.21346422]
[1755797215719,0.002,4227.6,4227.5,10.29146422]
[1755797216848,0.002,4227.6,4227.5,9.85086422]
[1755797217048,0.002,4227.6,4227.5,10.29146422]
[1755797217955,0.002,4227.6,4227.5,9.85086422]
[1755797218257,0.002,4227.6,4227.5,10.29146422]
[1755797219652,0.002,4227.6,4227.5,9.85086422]
[1755797220359,0.001,4228.2,4227.7,2.36535231]
[1755797220541,0.001,4228.2,4228.1,19.50609011]
[1755797220721,0.001,4228.2,4228.1,23.58309011]
[1755797221053,0.001,4228.2,4228.1,24.02369011]
[1755797221221,0.001,4228.2,4228.1,24.68369011]
[1755797221443,0.001,4228.2,4228.1,10.83172854]
[1755797221694,0.001,4228.2,4228.1,24.68369011]
[1755797223250,0.001,4228.2,4228.1,24.77845811]
[1755797223472,0.001,4228.2,4228.1,6.18949654]
[1755797223678,0.001,4228.2,4228.1,10.17072854]
[1755797224484,0.001,4228.2,4228.1,10.83072854]
[1755797225450,0.001,4228.2,4228.1,6.75472854]
[1755797225752,0.001,4228.2,4228.1,10.83072854]
[1755797226668,0.02,4228.8,4228.7,2.36479296]
[1755797226869,0.02,4228.8,4228.7,25.39975453]
[1755797227078,0.02,4228.8,4228.7,25.84035453]
[1755797228170,0.02,4228.8,4228.7,30.11035453]
[1755797228371,0.02,4228.8,4228.7,29.66975453]
[1755797230200,0.02,4228.8,4228.7,29.38075453]
[1755797230373,0.02,4228.8,4228.7,15.64619296]
[1755797230995,0.02,4228.8,4228.7,15.96249296]
[1755797231368,0.02,4228.8,4228.7,30.24825453]
[1755797231901,0.02,4228.8,4228.7,29.81445453]
[1755797232469,0.02,4228.8,4228.7,30.24825453]
[1755797233075,0.02,4228.8,4228.7,30.90825453]
[1755797233508,0.002,4229.1,4229.0,3.0246252]
[1755797233710,0.002,4229.1,4229.0,10.5333252]
[1755797233874,0.002,4229.1,4229.0,10.9671252]
[1755797234180,0.002,4229.7,4229.6,2.36428976]
[1755797234368,0.002,4229.7,4229.6,25.54295133]
[1755797234570,0.002,4229.7,4229.6,25.97675133]
[1755797236887,0.7497,4229.7,4229.6,7.47758506]
[1755797237083,0.7497,4229.7,4229.6,11.55058506]
[1755797238022,0.3163,4229.7,4229.6,11.55058506]
[1755797238313,0.7497,4229.7,4229.6,5.1132953]
[1755797238605,0.7497,4229.7,4229.6,9.1862953]
[1755797238778,0.7497,4229.7,4229.6,11.55058506]
[1755797239176,0.3163,4229.7,4229.6,11.55058506]
[1755797239392,0.002,4229.7,4229.6,11.55058506]
[1755797240185,0.002,4229.7,4229.6,11.86688506]
[1755797240509,0.002,4230.2,4230.1,2.3640103]
[1755797240681,0.002,4230.2,4230.1,24.26427187]
[1755797240880,0.002,4230.2,4230.1,24.81647187]
[1755797242204,0.002,4230.2,4230.1,24.91119787]
[1755797242408,0.002,4230.2,4230.1,5.5771363]
[1755797242573,0.3163,4230.2,4230.1,5.4824103]
[1755797242777,0.7497,4230.2,4230.1,0.1184]
[1755797242974,0.7497,4230.2,4230.1,4.1904]
[1755797244177,0.7497,4230.2,4230.1,3.1184]
[1755797244378,0.7497,4230.2,4230.1,4.071]
[1755797245411,0.7497,4230.2,4229.8,0.1184]
[1755797245612,0.7497,4230.2,4229.9,4.071]
[1755797245613,0.4334,4230.1,4229.9,4.071]
[1755797245914,0.4334,4230.1,4230.0,7.071]
[1755797246084,0.7477,4230.1,4230.0,7.071]
[1755797247506,0.7477,4230.1,4230.0,4.071]
[1755797247705,0.8661,4230.1,4230.0,4.071]
[1755797248208,0.8661,4230.1,4229.6,1.818]
[1755797248412,0.02955082,4230.0,4229.7,4.071]
[1755797248709,0.4327,4229.8,4229.7,4.071]
[1755797248878,0.8661,4229.8,4229.7,4.071]
[1755797250494,0.7477,4229.8,4229.7,4.071]
[1755797250812,0.3143,4229.8,4229.7,7.071]
[1755797251113,0.002,4230.2,4229.8,3.0]
[1755797251281,0.1204,4230.2,4230.0,3.0]
[1755797251482,0.3143,4229.9,4229.6,1.818]
[1755797251682,0.3143,4229.9,4229.8,3.0]
[1755797251907,0.3143,4229.9,4229.8,4.071]
[1755797252080,0.3143,4229.9,4229.6,1.818]
[1755797252280,0.1184,4229.8,4229.7,4.071]
[1755797252511,0.8661,4229.8,4229.7,4.071]
[1755797252689,0.8661,4229.8,4229.6,1.818]
[1755797252896,0.4334,4229.7,4229.6,1.818]
[1755797253189,0.7477,4229.7,4229.6,5.888]
[1755797253793,0.8661,4229.7,4229.6,5.888]
[1755797254382,0.1184,4229.7,4229.6,8.888]
[1755797254585,0.1184,4230.1,4229.7,3.0]
[1755797254898,0.1184,4230.1,4229.8,4.07]
[1755797256821,0.002,4230.2,4229.8,4.1884]
[1755797257324,0.3143,4229.9,4229.6,4.818]
[1755797257616,0.4334,4229.8,4229.7,7.07]
[1755797257818,0.7469,4229.8,4229.7,3.0]
[1755797258320,0.7469,4229.8,4229.7,7.07]
[1755797259214,0.66,4229.7,4229.5,50.0]
[1755797259432,1.56363,4229.6,4229.5,50.0]
[1755797259600,1.68203,4229.6,4229.5,50.0]
[1755797261001,1.02203,4229.6,4229.5,50.0]
[1755797261636,0.1184,4229.6,4229.5,53.0]
[1755797261839,0.002,4230.1,4229.6,3.0]
[1755797262135,0.1184,4229.8,4229.7,4.07]
[1755797262443,0.8695,4229.8,4229.7,4.07]
[1755797264247,0.1184,4229.8,4229.7,7.07]
[1755797264411,0.002,4230.1,4229.7,7.07]
[1755797264611,0.002,4230.1,4229.7,4.07]
[1755797264612,0.1184,4230.0,4229.7,4.07]
[1755797265802,0.002,4230.1,4229.9,0.31]
[1755797266032,0.002,4230.1,4230.0,23.28602776]
[1755797266206,0.002,4230.1,4230.0,9.86246619]
[1755797266403,0.002,4230.1,4230.0,10.30646619]
[1755797267228,0.002,4230.1,4230.0,3.4284]
[1755797267416,0.002,4230.1,4230.0,7.9414]
[1755797267911,0.002,4230.1,4230.0,7.1874]
[1755797268331,0.002,4230.1,4230.0,9.86146619]
[1755797268519,0.002,4230.1,4230.0,7.4974]
[1755797268714,0.002,4230.1,4230.0,7.1874]
[1755797268918,0.002,4230.1,4230.0,3.0]
[1755797269127,0.002,4230.1,4230.0,3.31]
[1755797269338,0.002,4230.1,4230.0,10.18706619]
[1755797269542,0.002,4230.1,4230.0,10.30546619]
[1755797269907,0.002,4230.1,4230.0,10.18706619]
[1755797270206,0.002,4230.1,4230.0,10.30546619]
[1755797270439,0.02,4230.8,4230.7,2.36367504]
[1755797270639,0.02,4230.8,4230.7,25.53103661]
[1755797270928,0.02,4230.8,4230.7,25.97503661]
[1755797271442,0.02,4230.8,4230.7,12.12307504]
[1755797271647,0.02,4230.8,4230.7,8.05407504]
[1755797271852,0.02,4230.8,4230.7,12.12307504]
[1755797273414,0.02,4230.8,4230.7,11.67807504]
[1755797273923,0.02,4230.8,4230.7,12.12207504]
[1755797275454,0.02,4230.8,4230.7,2.2464]
[1755797275748,0.02,4230.8,4230.7,11.67707504]
[1755797276419,0.02,4230.8,4230.7,9.0034]
[1755797276620,0.02,4230.8,4230.7,11.36707504]
[1755797276822,0.02,4230.8,4230.7,7.30007504]
[1755797277022,0.02,4230.8,4230.7,9.0034]
[1755797277426,0.02,4230.8,4230.7,11.36707504]
[1755797277753,0.02,4230.8,4230.7,11.67707504]
[1755797278940,0.022,4230.8,4230.7,4.9364]
[1755797279155,0.022,4230.8,4230.7,11.36707504]
[1755797279655,0.022,4230.8,4230.7,11.67707504]
[1755797279830,0.022,4230.8,4230.7,12.12107504]
[1755797280227,0.022,4230.8,4230.7,11.67707504]
[1755797280422,0.022,4230.8,4230.7,7.70480604]
[1755797280622,0.022,4230.8,4230.7,9.407131]
[1755797280828,0.7731,4230.8,4230.7,4.9364]
[1755797281058,0.7731,4230.8,4230.7,9.0024]
[1755797281244,0.7731,4230.8,4230.7,5.884]
[1755797281455,0.7731,4230.8,4230.7,8.884]
[1755797281644,0.7731,4230.8,4230.7,5.884]
[1755797281852,0.7731,4230.8,4230.7,8.884]
[1755797282048,0.7731,4230.8,4230.7,1.818]
[1755797282252,0.7731,4230.8,4230.7,5.884]
[1755797282450,0.7731,4230.8,4230.7,8.884]
[1755797282765,0.7731,4230.8,4230.7,4.818]
[1755797282969,0.8915,4230.8,4230.7,8.884]
[1755797283544,0.8915,4230.8,4230.7,4.818]
[1755797283744,0.8915,4230.8,4230.7,8.884]
[1755797283969,0.1404,4230.8,4230.7,7.066]
[1755797284345,0.4539,4230.8,4230.7,7.066]
[1755797284540,0.8915,4230.8,4230.7,7.066]
[1755797285549,0.4539,4230.8,4230.7,7.066]
[1755797285749,0.8915,4230.8,4230.7,7.066]
[1755797286272,0.8915,4230.8,4230.7,3.0]
[1755797286569,0.8915,4230.8,4230.7,7.066]
[1755797287467,0.1404,4230.8,4230.7,7.066]
[1755797287854,0.429,4230.8,4230.7,7.066]
[1755797288078,0.8628,4230.8,4230.7,7.066]
[1755797289870,0.1404,4230.8,4230.7,7.066]
[1755797290073,0.022,4230.8,4230.7,9.74107504]
[1755797290377,0.022,4230.8,4230.7,10.19027504]
[1755797290752,0.022,4230.8,4230.7,7.4958]
[1755797291065,0.022,4230.8,4230.7,7.1844]
[1755797291461,0.022,4230.8,4230.7,9.85947504]
[1755797291662,0.022,4230.8,4230.7,7.4958]
[1755797292357,0.022,4230.8,4230.7,7.1844]
[1755797293294,0.022,4230.8,4230.7,9.54807504]
[1755797293592,0.022,4230.8,4230.7,7.066]
[1755797294346,0.022,4230.8,4230.7,9.74107504]
[1755797294562,0.022,4230.8,4230.7,10.19027504]
[1755797295750,0.022,4230.8,4230.7,7.8266]
[1755797295949,0.022,4230.8,4230.7,7.3774]
[1755797296182,0.022,4230.8,4230.7,9.74107504]
[1755797296587,0.3106,4230.8,4230.7,7.066]
[1755797297487,0.7444,4230.8,4230.7,7.066]
[1755797297674,0.7444,4230.8,4230.7,4.066]
[1755797297985,0.7444,4230.8,4230.7,4.064]
[1755797298287,0.022,4230.8,4230.7,10.18827504]
[1755797298489,0.022,4230.8,4230.7,10.30667504]
[1755797299506,0.022,4230.8,4230.7,7.4938]
[1755797300163,0.022,4230.8,4230.7,9.85747504]
[1755797300490,0.3106,4230.8,4230.7,3.1184]
[1755797300809,0.8628,4230.8,4230.7,4.064]
[1755797301018,0.8628,4230.8,4230.1,1.819]
[1755797301158,0.02954593,4230.7,4230.2,4.064]
[1755797301523,0.1184,4230.4,4230.2,4.064]
[1755797301672,0.7224,4230.3,4230.2,4.064]
[1755797302325,1.3824,4230.3,4230.2,4.064]
[1755797302620,0.66,4230.2,4230.1,0.001]
[1755797302825,1.3824,4230.2,4230.1,4.065]
[1755797303588,0.2886,4230.2,4230.1,4.065]
[1755797303816,0.1184,4230.4,4230.2,3.0]
[1755797304108,0.1184,4230.4,4230.1,7.065]
[1755797304109,0.1184,4230.4,4230.3,7.3754]
[1755797304276,0.022,4230.8,4230.4,3.0]
[1755797304477,0.1184,4230.6,4230.5,4.064]
[1755797304717,0.022,4230.8,4230.5,4.064]
[1755797304718,0.022,4230.8,4230.5,7.3754]
[1755797304914,0.022,4230.8,4230.6,3.0]
[1755797305084,0.022,4230.8,4230.7,7.3754]
[1755797306607,0.022,4230.8,4230.7,7.064]
[1755797307835,0.022,4230.8,4230.7,7.3754]
[1755797307993,0.022,4230.8,4230.7,7.4938]
[1755797308327,0.3106,4230.8,4230.7,3.0]
[1755797308529,0.8628,4230.8,4230.7,7.064]
[1755797309325,0.429,4230.8,4230.7,7.064]
[1755797309510,0.1404,4230.8,4230.7,7.064]
[1755797309709,0.1404,4230.8,4230.7,9.73907504]
[1755797309910,0.1404,4230.8,4230.7,10.18827504]
[1755797310626,0.022,4230.8,4230.7,10.30667504]
[1755797312930,0.022,4230.8,4230.7,10.40140504]
[1755797319210,0.022,4230.8,4230.7,5.88820504]
[1755797319414,0.022,4230.8,4230.7,9.95020504]
[1755797319845,0.022,4230.8,4230.7,10.39750504]
[1755797320041,0.022,4230.8,4230.7,9.95020504]
[1755797320210,0.022,4230.8,4230.7,6.95020504]
[1755797320410,0.3231,4230.8,4230.7,6.54407504]
[1755797320642,0.022,4230.8,4230.7,7.4788]
[1755797320940,0.022,4230.8,4230.7,9.84247504]
[1755797321648,0.022,4230.8,4230.7,10.28977504]
[1755797324418,0.022,4230.8,4230.7,9.84247504]
[1755797324627,0.022,4230.8,4230.7,10.38450304]
[1755797325525,0.022,4230.8,4230.7,9.93720304]
[1755797326550,0.022,4230.8,4230.7,10.38450304]
[1755797327554,1e-08,4231.3,4231.2,2.36339572]
[1755797327755,0.002,4231.7,4231.4,2.36328401]
[1755797327953,0.002,4231.7,4231.6,3.4168]
[1755797328132,0.002,4231.7,4231.6,5.8982605]
[1755797328340,0.002,4231.7,4231.6,6.3455605]
[1755797328653,0.4444,4233.0,4231.7,2.36311647]
[1755797328952,0.4444,4233.0,4231.7,24.20124751]
[1755797330026,0.022,4231.8,4231.7,24.20124751]
[1755797330224,1.818,4234.3,4231.7,24.20124751]
[1755797330225,0.4444,4233.3,4232.7,2.36255817]
[1755797330441,0.1184,4233.4,4232.7,11.35995817]
[1755797330660,0.7655,4232.8,4232.7,4.9364]
[1755797330839,0.7655,4232.8,4232.7,8.879]
[1755797332468,0.7655,4232.8,4232.7,11.24155817]
[1755797332469,0.3211,4232.8,4232.7,11.24155817]
[1755797332976,0.3211,4232.8,4232.7,11.35995817]
[1755797333147,0.7655,4232.8,4232.7,8.9974]
[1755797333352,0.7655,4232.8,4232.7,4.9364]
[1755797333543,0.7655,4232.8,4232.7,8.9964]
[1755797333749,0.7655,4232.8,4232.7,11.35895817]
[1755797333949,0.7655,4232.8,4232.7,8.9964]
[1755797334179,0.7655,4232.8,4232.7,11.35895817]
[1755797334383,0.02,4232.8,4232.7,11.35895817]
[1755797335049,0.02,4232.8,4232.7,12.10465817]
[1755797336884,0.5628,4234.3,4233.4,2.36216752]
[1755797337077,0.1184,4234.3,4233.4,9.53956752]
[1755797337280,0.4444,4234.0,4233.4,9.53956752]
[1755797337852,0.4444,4234.3,4233.4,9.83796752]
[1755797338048,0.4444,4234.3,4233.4,10.33696752]
[1755797338383,0.002,4234.4,4233.4,10.78426752]
[1755797339797,0.4444,4234.1,4233.4,5.97956752]
[1755797339994,0.4444,4234.1,4233.4,10.03756752]
[1755797340164,0.4444,4234.1,4233.4,7.6754]
[1755797340354,1.2445,4233.5,4233.4,7.1764]
[1755797340554,1.2445,4233.5,4233.4,9.53856752]
[1755797340854,0.8001,4233.5,4233.4,9.53856752]
[1755797342403,0.8001,4233.5,4233.4,7.1764]
[1755797342608,0.8001,4233.5,4233.4,9.53856752]
[1755797342995,0.8001,4233.5,4233.4,7.1764]
[1755797343302,0.8001,4233.5,4233.4,9.53856752]
[1755797343691,0.8001,4233.5,4233.4,7.1764]
[1755797343896,1.2445,4233.5,4233.4,7.1764]
[1755797344400,1.2445,4233.5,4233.4,7.1754]
[1755797344814,1.2445,4233.5,4233.4,0.1184]
[1755797344992,1.42085,4233.5,4233.4,4.057]
[1755797345175,1.53925,4233.5,4232.8,0.1184]
[1755797345369,1.09485,4233.5,4232.9,4.057]
[1755797345604,0.8001,4233.5,4233.2,0.1184]
[1755797345768,0.8001,4233.5,4233.4,3.0]
[1755797346809,1.1377,4233.5,4233.2,0.1184]
[1755797347124,0.456,4233.4,4233.3,7.057]
[1755797347321,0.7571,4233.4,4233.3,7.057]
[1755797349735,0.4195,4233.4,4233.3,7.057]
[1755797349944,0.3011,4233.4,4233.3,7.057]
[1755797350527,0.499,4233.5,4233.4,2.36216752]
[1755797350719,0.499,4233.5,4233.4,19.51932909]
[1755797351026,0.499,4233.5,4233.4,19.96612909]
[1755797351531,0.499,4233.5,4233.4,20.01832909]
[1755797351739,0.499,4233.5,4233.4,5.86116752]
[1755797352036,1.2524,4233.5,4233.4,7.056]
[1755797352331,1.2524,4233.5,4233.4,3.0]
[1755797352518,1.2524,4233.5,4233.4,7.056]
[1755797352718,1.42954,4233.5,4233.4,7.056]
[1755797353110,1.54794,4233.5,4233.4,7.056]
[1755797353316,1.04894,4233.5,4233.4,7.056]
[1755797353938,1.04894,4233.5,4233.4,3.0]
[1755797354111,1.04894,4233.5,4233.4,7.056]
[1755797356210,1.04894,4233.5,4232.8,0.1184]
[1755797356412,1.04894,4233.5,4232.7,1.818]
[1755797356413,0.1184,4233.1,4232.9,4.056]
[1755797356643,0.1184,4233.1,4232.7,1.818]
[1755797356644,0.1184,4233.1,4233.0,4.056]
[1755797357158,0.8718,4233.1,4233.0,4.056]
[1755797358121,0.8718,4233.1,4233.0,4.055]
[1755797358320,0.8718,4233.1,4232.7,1.818]
[1755797358567,0.4178,4233.1,4232.9,3.0]
[1755797358766,0.48352988,4233.0,4232.7,1.818]
[1755797358929,0.48352988,4233.0,4232.8,4.055]
[1755797359133,0.1184,4232.9,4232.8,4.055]
[1755797359334,0.8718,4232.9,4232.8,4.055]
[1755797361624,0.8718,4232.9,4232.7,1.818]
[1755797361831,0.48353127,4232.8,4232.1,1.817]
[1755797362145,0.48353127,4232.8,4232.2,4.055]
[1755797362337,0.2994,4232.3,4232.2,4.055]
[1755797362655,0.1184,4232.3,4232.2,4.055]
[1755797363167,0.4178,4232.3,4232.2,4.055]
[1755797363454,0.454,4233.3,4232.2,4.807]
[1755797363659,0.1184,4232.5,4232.2,4.3602]
[1755797364123,0.002,4233.1,4232.3,3.0]
[1755797364329,0.1204,4233.1,4232.7,2.36254775]
[1755797364658,0.1204,4233.1,4232.5,3.0]
[1755797364659,0.1204,4233.1,4232.8,4.055]
[1755797365524,0.1204,4233.1,4232.9,4.055]
[1755797365835,0.2994,4233.0,4232.9,4.055]
[1755797366152,0.7534,4233.0,4232.9,4.055]
[1755797369260,0.66,4232.9,4232.1,1.817]
[1755797369437,0.1204,4233.1,4232.2,4.054]
[1755797369438,0.66,4232.7,4232.2,4.054]
[1755797369642,0.1184,4232.3,4232.2,4.054]
[1755797369828,0.002,4233.1,4232.2,4.054]
[1755797369829,0.002,4233.1,4232.6,0.3052]
[1755797370028,0.1204,4233.1,4232.7,4.054]
[1755797370225,0.1204,4233.1,4233.0,0.3052]
[1755797370461,0.1204,4233.1,4233.0,7.054]
[1755797370462,0.002,4233.1,4233.0,7.054]
[1755797370837,0.002,4233.1,4233.0,9.72159073]
[1755797371043,0.002,4233.1,4233.0,7.806]
[1755797371233,0.002,4233.1,4233.0,7.3592]
[1755797371687,0.3014,4233.1,4233.0,3.0]
[1755797371832,0.7554,4233.1,4233.0,4.054]
[1755797372728,1.4154,4233.1,4233.0,4.054]
[1755797372925,1.4154,4233.1,4232.3,1.817]
[1755797372926,1.57173278,4233.1,4232.3,1.817]
[1755797373234,1.57173278,4233.1,4232.4,4.054]
[1755797373235,0.1184,4232.5,4232.4,4.054]
[1755797373434,0.4178,4232.5,4232.4,4.054]
[1755797374237,0.8718,4232.5,4232.4,4.054]
[1755797374635,0.8718,4232.5,4232.3,1.817]
[1755797374959,0.8718,4232.5,4232.4,4.054]
[1755797376347,0.4178,4232.5,4232.4,4.054]
[1755797377674,0.8718,4232.5,4232.3,1.817]
[1755797377876,0.8718,4232.5,4232.4,4.054]
[1755797379280,0.4178,4232.5,4232.4,4.053]
[1755797379649,0.1184,4232.5,4232.3,1.817]
[1755797379847,0.1184,4232.5,4232.4,4.053]
[1755797380450,0.8732,4232.5,4232.4,4.053]
[1755797380748,0.4134,4232.5,4232.4,4.053]
[1755797381773,0.1184,4232.5,4232.4,4.355]
[1755797382282,0.1184,4232.5,4232.4,4.053]
[1755797383448,0.8732,4232.5,4232.3,1.818]
[1755797383648,0.02953407,4232.4,4232.3,1.818]